[Event "GER-ch Youth-U10 2022"]
[Site "Willingen"]
[Date "2022.06.08"]
[Round "7.13"]
[White "Fadeev, Justin Michael"]
[Black "Heitmann, Erik"]
[Result "1-0"]
[ECO "B90"]
[WhiteElo "1320"]
[BlackElo "1287"]
[Annotator "NA RC COMBH"]
[PlyCount "153"]
[EventDate "2022.06.05"]
[EventType "swiss"]
[EventRounds "11"]
[EventCountry "GER"]
[SourceTitle "playchess.com"]
[Source "ChessBase"]
[SourceQuality "1"]
[TimeControl "40/4500+30:900+30"]

1. e4 {[%emt 0:00:03]} c5 {[%emt 0:00:05]} 2. Nf3 {[%emt 0:00:02]} d6 {[%emt 0:00:11]} 3. d4 {[%emt 0:00:04]} cxd4 {[%emt 0:00:43]} 4. Nxd4 {[%emt 0:00:07]} Nf6 {[%emt 0:00:32]} 5. Nc3 {[%emt 0:00:12]} a6 {[%emt 0:00:41]} 6. Be3 {[%emt 0:00:37]} e5 {[%emt 0:00:29]} 7. Nf3 {[%emt 0:00:07]} Be7 {[%emt 0:00:19]} 8. Bc4 {[%emt 0:00:14]} b5 {[%emt 0:03:10]} 9. Bd5 {[%emt 0:00:11]} Nxd5 {[%emt 0:00:11]} 10. Qxd5 {[%emt 0:00:09]} Qd7 {[%emt 0:04:11]} 11. Qxa8 {[%emt 0:01:46]} Nc6 {[%emt 0:00:09]} 12. Nd5 {[%emt 0:00:45]} Bd8 {[%emt 0:00:48]} 13. Nb6 {[%emt 0:07:01]} Bxb6 {[%emt 0:00:20]} 14. Bxb6 {[%emt 0:00:28]} O-O {[%emt 0:00:22]} 15. O-O {[%emt 0:02:42]} Bb7 {[%emt 0:00:19]} 16. Qxf8+ {[%emt 0:00:12]} Kxf8 {[%emt 0:00:09]} 17. Rad1 {[%emt 0:01:02]} Nb4 {[%emt 0:00:41]} 18. Rd2 {[%emt 0:00:38]} Ke8 {[%emt 0:01:03]} 19. Rfd1 {[%emt 0:00:29]} d5 {[%emt 0:01:11]} 20. a3 {[%emt 0:00:35]} Nc6 {[%emt 0:00:42]} 21. exd5 {[%emt 0:01:59]} Ne7 {[%emt 0:00:13]} 22. Nxe5 {[%emt 0:04:24]} Qd6 {[%emt 0:00:44]} 23. Bc7 {[%emt 0:04:10]} Qxc7 {[%emt 0:00:59]} 24. d6 {[%emt 0:00:26]} Qd8 {[%emt 0:01:47]} 25. dxe7 {[%emt 0:00:40]} Qxe7 {[%emt 0:00:11]} 26. Rd8+ {[%emt 0:00:11]} Qxd8 {[%emt 0:00:08]} 27. Rxd8+ {[%emt 0:00:13]} Kxd8 {[%emt 0:00:03]} 28. Nxf7+ {[%emt 0:00:09]} Ke7 {[%emt 0:00:20]} 29. Ng5 {[%emt 0:01:07]} h6 {[%emt 0:00:14]} 30. Nf3 {[%emt 0:02:26]} Bxf3 {[%emt 0:02:28]} 31. gxf3 {[%emt 0:00:08]} Kd6 {[%emt 0:00:09]} 32. Kf1 {[%emt 0:00:27]} Ke5 {[%emt 0:00:25]} 33. Ke2 {[%emt 0:00:13]} Kf4 {[%emt 0:00:27]} 34. b3 {[%emt 0:00:09]} g5 {[%emt 0:00:24]} 35. h3 {[%emt 0:01:34]} Ke5 {[%emt 0:01:06]} 36. Ke3 {[%emt 0:00:13]} Kf5 {[%emt 0:01:38]} 37. c4 {[%emt 0:00:16]} bxc4 {[%emt 0:00:27]} 38. bxc4 {[%emt 0:00:05]} Ke5 {[%emt 0:00:07]} 39. Kd3 {[%emt 0:01:58]} Kd6 {[%emt 0:00:39]} 40. Kd4 {[%emt 0:00:18]} Kc6 {[%emt 0:00:30]} 41. c5 {[%emt 0:16:45]} a5 {[%emt 0:15:13]} 42. a4 {[%emt 0:00:06]} Kd7 {[%emt 0:00:39]} 43. Kd5 {[%emt 0:00:36]} Kc7 {[%emt 0:01:03]} 44. c6 {[%emt 0:00:07]} Kc8 {[%emt 0:01:22]} 45. Kc5 {[%emt 0:00:27]} Kc7 {[%emt 0:03:19]} 46. Kb5 {[%emt 0:00:12]} h5 {[%emt 0:00:11]} 47. Kc5 {[%emt 0:01:21]} h4 {[%emt 0:00:51]} 48. Kd5 {[%emt 0:01:03]} Kc8 {[%emt 0:00:20]} 49. Kd6 {[%emt 0:00:11]} Kd8 {[%emt 0:00:16]} 50. c7+ {[%emt 0:00:34]} Kc8 {[%emt 0:00:05]} 51. Kc5 {[%emt 0:00:10]} Kxc7 {[%emt 0:00:08]} 52. Kb5 {[%emt 0:00:28]} Kd6 {[%emt 0:00:23]} 53. Kxa5 {[%emt 0:00:08]} Kc5 {[%emt 0:00:19]} 54. Ka6 {[%emt 0:00:08]} Kb4 {[%emt 0:00:05]} 55. Kb6 {[%emt 0:01:33]} Kxa4 {[%emt 0:00:05]} 56. Kc5 {[%emt 0:00:06]} Kb3 {[%emt 0:00:13]} 57. Kd4 {[%emt 0:00:03]} Kb4 {[%emt 0:00:13]} 58. Ke5 {[%emt 0:00:08]} Kc5 {[%emt 0:00:24]} 59. Kf5 {[%emt 0:00:08]} Kd5 {[%emt 0:00:28]} 60. Kxg5 {[%emt 0:00:29]} Ke5 {[%emt 0:00:19]} 61. f4+ {[%emt 0:00:52]} Ke6 {[%emt 0:00:09]} 62. Kxh4 {[%emt 0:00:07]} Kf5 {[%emt 0:00:09]} 63. Kh5 {[%emt 0:00:30]} Kxf4 {[%emt 0:00:06]} 64. Kg6 {[%emt 0:00:15]} Ke5 {[%emt 0:00:23]} 65. h4 {[%emt 0:00:06]} Ke6 {[%emt 0:00:11]} 66. h5 {[%emt 0:00:05]} Ke7 {[%emt 0:00:17]} 67. Kg7 {[%emt 0:00:07]} Ke6 {[%emt 0:00:07]} 68. h6 {[%emt 0:00:05]} Kf5 {[%emt 0:00:04]} 69. h7 {[%emt 0:00:07]} Kg5 {[%emt 0:00:04]} 70. h8=Q {[%emt 0:00:11]} Kf5 {[%emt 0:00:03]} 71. Qh6 {[%emt 0:00:10]} Kg4 {[%emt 0:00:07]} 72. Qf6 {[%emt 0:00:14]} Kh3 {[%emt 0:00:06]} 73. Qg5 {[%emt 0:00:08]} Kh2 {[%emt 0:00:19]} 74. Kf6 {[%emt 0:00:12]} Kh1 {[%emt 0:00:10]} 75. Kf5 {[%emt 0:00:06]} Kh2 {[%emt 0:00:11]} 76. Kf4 {[%emt 0:00:07]} Kh1 {[%emt 0:00:11]} 77. Kf3 {[%emt 0:00:07]} 1-0

[Event "GER-ch Youth-U10 2022"]
[Site "Willingen"]
[Date "2022.06.08"]
[Round "7.14"]
[White "Chua, Daniel James"]
[Black "Van 't Hof, Eric"]
[Result "1/2-1/2"]
[ECO "C30"]
[WhiteElo "1314"]
[BlackElo "2081"]
[Annotator "TA"]
[PlyCount "48"]
[EventDate "2022.06.05"]
[EventType "swiss"]
[EventRounds "11"]
[EventCountry "GER"]
[SourceTitle "playchess.com"]
[Source "ChessBase"]
[SourceQuality "1"]
[TimeControl "40/4500+30:900+30"]

{[%evp 10,48,0,0,0,-13,14,-37,90,77,108,76,80,24,39,0,5,0,107,110,95,75,108,73,131,0,0,-93,-99,-191,0,0,516,502,618,613,514,236,247,48,202]} 1. e4 {[%emt 0:00:01]} e5 {[%emt 0:00:09]} 2. f4 {[%emt 0:00:15]} Bc5 {[%emt 0:00:10]} 3. Nf3 {[%emt 0:00:07]} d6 {[%emt 0:00:08]} 4. c3 {[%emt 0:07:28]} Nc6 {[%emt 0:01:51]} 5. d4 {[%emt 0:02:35]} exd4 {[%emt 0:01:05]} 6. cxd4 {[%emt 0:02:47]} Bb6 $1 {[%emt 0:00:41] 6...Bb6 scores better than 6...Bb4+. C30: King's Gambit Declined.} 7. Nc3 {[%emt 0:05:47]} Bg4 {[%emt 0:01:48]} 8. Bb5 {[%emt 0:00:16]} (8. Be3 $11) 8... Bd7 {[%emt 0:01:38]} (8... Bxf3 $15 {keeps the upper hand.} 9. gxf3 Qh4+ 10. Ke2 Nge7) 9. O-O $16 {[%emt 0:06:57] [#]} Nge7 $146 {[%emt 0:01:56]} ({Predecessor:} 9... Nce7 10. Bc4 Nh6 11. f5 Neg8 12. h3 Qe7 13. Nd5 Qf8 14. a4 c6 15. Nxb6 axb6 {1-0 (35) Lasker,E-Ettlinger,A New York 1893}) 10. f5 {[%emt 0:05:04]} Ne5 {[%emt 0:04:01]} 11. Bxd7+ {[%emt 0:02:50]} ({White should play} 11. Ba4 $16) 11... Qxd7 $11 {[%emt 0:00:36]} 12. Kh1 {[%emt 0:00:22]} ({Much weaker is} 12. Nxe5 dxe5 13. Qb3 Nc6 $17) 12... Nxf3 {[%emt 0:00:53]} 13. Rxf3 {[%emt 0:01:38]} Nc6 {[%emt 0:06:14]} (13... d5 $1 $11 {remains equal.}) 14. Be3 $16 {[%emt 0:01:12]} O-O-O {[%emt 0:06:30]} 15. a3 {[%emt 0:02:25]} Rhe8 {[%emt 0:06:33][%cal Od6d5]} 16. b4 {[%emt 0:05:58][%cal Bb2b4,Bb4b5,Bb5a6][%mdl 32]} Ne7 {[%emt 0:08:35]} (16... f6 $142) 17. Qb3 {[%emt 0:04:02] White is more active.} ({White should try} 17. Qd3 $16) 17... f6 {[%emt 0:01:44]} 18. Rb1 {[%emt 0:00:25]} (18. Rg3 $1 $11 {keeps the balance.} d5 19. Rxg7 dxe4 20. Rf1 (20. Nxe4 Qxf5 21. Ng3 Qd5 $11)) 18... d5 $17 {[%emt 0:01:04]} 19. a4 {[%emt 0:02:11]} (19. Rg3 $17) 19... a6 $2 {[%emt 0:03:54]} (19... dxe4 $19 20. Nxe4 Nxf5) 20. a5 {[%emt 0:06:30]} Ba7 {[%emt 0:00:20][%mdl 8192]} (20... dxe4 $11 {and Black is okay.} 21. Rh3 Bxd4) 21. b5 $18 {[%emt 0:02:03] [#] bxa6 is the strong threat.} b6 {[%emt 0:00:24]} 22. bxa6 {[%emt 0:00:41]} dxe4 {[%emt 0:00:33]} 23. Nxe4 {[%emt 0:00:36]} (23. Rff1 $142) 23... Qd5 {[%emt 0:02:03] [#]} 24. axb6 $2 {[%emt 0:06:57]} (24. Qd3 $1 $18) 24... Bxb6 $2 {[%emt 0:03:24] Weighted Error Value: White=0.64/Black=0.81} (24... Qxb3 $1 $14 25. Rxb3 Bxb6) 1/2-1/2

[Event "GER-ch Youth-U10 2022"]
[Site "Willingen"]
[Date "2022.06.08"]
[Round "7.15"]
[White "Kutz, Paul Matti"]
[Black "Tak, Rannveer"]
[Result "1/2-1/2"]
[ECO "C14"]
[WhiteElo "1202"]
[BlackElo "1746"]
[Annotator "NA RC COMBH"]
[PlyCount "122"]
[EventDate "2022.06.05"]
[EventType "swiss"]
[EventRounds "11"]
[EventCountry "GER"]
[SourceTitle "playchess.com"]
[Source "ChessBase"]
[SourceQuality "1"]
[TimeControl "40/4500+30:900+30"]

1. e4 {[%emt 0:00:02]} e6 {[%emt 0:00:04]} 2. d4 {[%emt 0:00:06]} d5 {[%emt 0:00:04]} 3. Nc3 {[%emt 0:00:11]} Nf6 {[%emt 0:00:33]} 4. Bg5 {[%emt 0:00:18]} Be7 {[%emt 0:00:07]} 5. e5 {[%emt 0:00:24]} Nfd7 {[%emt 0:00:16]} 6. h4 {[%emt 0:00:14]} h6 {[%emt 0:00:23]} 7. Bxe7 {[%emt 0:00:14]} Qxe7 {[%emt 0:00:22]} 8. Qg4 {[%emt 0:00:55]} O-O {[%emt 0:01:26]} 9. Bd3 {[%emt 0:03:14]} a6 {[%emt 0:00:39]} 10. O-O-O {[%emt 0:01:20]} c5 {[%emt 0:00:51]} 11. Rh3 {[%emt 0:01:21]} c4 {[%emt 0:01:39]} 12. Be2 {[%emt 0:02:57]} b5 {[%emt 0:04:27]} 13. Bf3 {[%emt 0:01:26]} Bb7 {[%emt 0:02:13]} 14. Nce2 {[%emt 0:01:48]} a5 {[%emt 0:02:36]} 15. Nf4 {[%emt 0:00:18]} b4 {[%emt 0:03:28]} 16. Rg3 {[%emt 0:01:46]} f6 {[%emt 0:01:59]} 17. Ng6 {[%emt 0:01:28]} Qf7 {[%emt 0:01:10]} 18. Nxf8 {[%emt 0:00:45]} Nxf8 {[%emt 0:00:10]} 19. Qh5 {[%emt 0:01:16]} Qe7 {[%emt 0:01:01]} 20. Qxh6 {[%emt 0:01:02]} f5 {[%emt 0:03:07]} 21. Qg5 {[%emt 0:00:29]} Qc7 {[%emt 0:03:08]} 22. Be2 {[%emt 0:01:38]} a4 {[%emt 0:01:02]} 23. h5 {[%emt 0:01:08]} Nh7 {[%emt 0:10:40]} 24. Qg6 {[%emt 0:00:51]} Nf8 {[%emt 0:00:11]} 25. Qf6 {[%emt 0:01:52]} c3 {[%emt 0:14:22]} 26. h6 {[%emt 0:02:48]} g6 {[%emt 0:00:33]} 27. Qg7+ {[%emt 0:00:44]} Qxg7 {[%emt 0:00:15]} 28. hxg7 {[%emt 0:00:09]} cxb2+ {[%emt 0:00:13]} 29. Kxb2 {[%emt 0:00:09]} Kxg7 {[%emt 0:00:09]} 30. f4 {[%emt 0:00:42]} Nbd7 {[%emt 0:02:57]} 31. Nf3 {[%emt 0:01:26]} Nb6 {[%emt 0:02:32]} 32. Nd2 {[%emt 0:00:42]} Ba6 {[%emt 0:01:05]} 33. Bxa6 {[%emt 0:00:44]} Rxa6 {[%emt 0:00:07]} 34. Rc1 {[%emt 0:01:06]} Nc4+ {[%emt 0:04:37]} 35. Nxc4 {[%emt 0:00:12]} dxc4 {[%emt 0:00:04]} 36. c3 {[%emt 0:00:14]} b3 {[%emt 0:03:55]} 37. axb3 {[%emt 0:00:29]} axb3 {[%emt 0:01:18]} 38. Ra1 {[%emt 0:00:11]} Rxa1 {[%emt 0:00:14]} 39. Kxa1 {[%emt 0:00:05]} Nd7 {[%emt 0:00:07]} 40. Rf3 {[%emt 0:01:56]} Nb6 {[%emt 0:00:12]} 41. Kb2 {[%emt 0:15:23]} Nd5 {[%emt 0:15:59]} 42. g3 {[%emt 0:00:42]} g5 {[%emt 0:03:38]} 43. Rf1 {[%emt 0:08:14]} gxf4 {[%emt 0:01:42]} 44. gxf4 {[%emt 0:00:39]} Kg6 {[%emt 0:00:24]} 45. Rg1+ {[%emt 0:05:43]} Kh5 {[%emt 0:02:08]} 46. Rg5+ {[%emt 0:00:40]} Kh4 {[%emt 0:00:17]} 47. Rg8 {[%emt 0:02:30]} Nxf4 {[%emt 0:05:29]} 48. Rc8 {[%emt 0:01:36]} Nd3+ {[%emt 0:00:40]} 49. Kb1 {[%emt 0:00:42]} f4 {[%emt 0:00:28]} 50. Rxc4 {[%emt 0:01:07]} f3 {[%emt 0:01:56]} 51. d5+ {[%emt 0:00:49]} Kg5 {[%emt 0:00:40]} 52. Rc8 {[%emt 0:01:06]} exd5 {[%emt 0:05:26]} 53. e6 {[%emt 0:00:36]} Kf6 {[%emt 0:00:21]} 54. Rf8+ {[%emt 0:00:06]} Kxe6 {[%emt 0:00:07]} 55. Rxf3 {[%emt 0:00:05]} Nc5 {[%emt 0:00:11]} 56. Rf8 {[%emt 0:01:07]} Na4 {[%emt 0:00:50]} 57. Ra8 {[%emt 0:01:00]} Nxc3+ {[%emt 0:00:19]} 58. Kb2 {[%emt 0:00:08]} d4 {[%emt 0:00:07]} 59. Kxb3 {[%emt 0:00:09]} Kd5 {[%emt 0:00:25]} 60. Rd8+ {[%emt 0:00:14]} Ke4 {[%emt 0:00:13]} 61. Rxd4+ {[%emt 0:00:26]} Kxd4 {[%emt 0:00:04]} 1/2-1/2

[Event "GER-ch Youth-U10 2022"]
[Site "Willingen"]
[Date "2022.06.08"]
[Round "7.17"]
[White "Moskalenko, Michael"]
[Black "Rudolph, Simon"]
[Result "0-1"]
[ECO "D52"]
[WhiteElo "1266"]
[BlackElo "1361"]
[Annotator "NA RC COMBH"]
[PlyCount "64"]
[EventDate "2022.06.05"]
[EventType "swiss"]
[EventRounds "11"]
[EventCountry "GER"]
[SourceTitle "playchess.com"]
[Source "ChessBase"]
[SourceQuality "1"]
[TimeControl "40/4500+30:900+30"]

1. d4 {[%emt 0:00:04]} d5 {[%emt 0:00:04]} 2. c4 {[%emt 0:00:03]} e6 {[%emt 0:00:05]} 3. Nf3 {[%emt 0:00:06]} Nf6 {[%emt 0:00:07]} 4. Bg5 {[%emt 0:00:06]} Nbd7 {[%emt 0:00:09]} 5. e3 {[%emt 0:00:13]} c6 {[%emt 0:00:14]} 6. cxd5 {[%emt 0:00:21]} exd5 {[%emt 0:00:47]} 7. Nc3 {[%emt 0:01:33]} Bb4 {[%emt 0:00:50]} 8. Bd3 {[%emt 0:00:22]} Qa5 {[%emt 0:00:31]} 9. Qc2 {[%emt 0:03:07]} O-O {[%emt 0:01:26]} 10. O-O {[%emt 0:01:00]} Re8 {[%emt 0:01:07]} 11. a3 {[%emt 0:01:09]} Bd6 {[%emt 0:00:56]} 12. Rac1 {[%emt 0:02:48]} a6 {[%emt 0:04:40]} 13. Rfe1 {[%emt 0:16:10]} c5 {[%emt 0:03:21]} 14. Ne2 {[%emt 0:03:48]} c4 {[%emt 0:01:22]} 15. Bf5 {[%emt 0:03:29]} g6 {[%emt 0:03:15]} 16. Bxd7 {[%emt 0:01:07]} Nxd7 {[%emt 0:00:23]} 17. Nf4 {[%emt 0:03:55]} Be7 {[%emt 0:03:14]} 18. Bh6 {[%emt 0:03:31]} Nf6 {[%emt 0:01:55]} 19. h4 {[%emt 0:01:38]} Ng4 {[%emt 0:02:10]} 20. h5 {[%emt 0:12:41]} Nxh6 {[%emt 0:01:14]} 21. hxg6 {[%emt 0:01:04]} fxg6 {[%emt 0:01:06]} 22. Nxg6 {[%emt 0:02:39]} Bf5 {[%emt 0:00:47]} 23. Nxe7+ {[%emt 0:01:13]} Rxe7 {[%emt 0:00:10]} 24. Qd1 {[%emt 0:01:20]} Rg7 {[%emt 0:02:45]} 25. Ne5 {[%emt 0:03:57]} Rf8 {[%emt 0:01:17]} 26. Kh2 {[%emt 0:06:34]} Ng4+ {[%emt 0:00:40]} 27. Nxg4 {[%emt 0:00:05]} Bxg4 {[%emt 0:00:28]} 28. Qc2 {[%emt 0:00:36]} Bf5 {[%emt 0:01:17]} 29. Qd1 {[%emt 0:00:50]} Qc7+ {[%emt 0:00:18]} 30. Kh1 {[%emt 0:00:47]} Be4 {[%emt 0:01:23]} 31. f3 {[%emt 0:01:15]} Qg3 {[%emt 0:01:20]} 32. Qe2 {[%emt 0:01:18]} Rxf3 {[%emt 0:05:47]} 0-1

[Event "GER-ch Youth-U10 2022"]
[Site "Willingen"]
[Date "2022.06.08"]
[Round "7.18"]
[White "Fels, Mattis"]
[Black "Andersen, Jonatan M"]
[Result "1-0"]
[ECO "D00"]
[WhiteElo "1395"]
[BlackElo "1857"]
[Annotator "NA RC COMBH"]
[PlyCount "63"]
[EventDate "2022.06.05"]
[EventType "swiss"]
[EventRounds "11"]
[EventCountry "GER"]
[SourceTitle "playchess.com"]
[Source "ChessBase"]
[SourceQuality "1"]
[TimeControl "40/4500+30:900+30"]

1. d4 {[%emt 0:00:01]} d5 {[%emt 0:00:07]} 2. Nc3 {[%emt 0:00:12]} Nf6 {[%emt 0:00:16]} 3. Bf4 {[%emt 0:00:16]} c5 {[%emt 0:00:48]} 4. e3 {[%emt 0:00:35]} a6 {[%emt 0:00:16]} 5. dxc5 {[%emt 0:00:25]} Nc6 {[%emt 0:00:24]} 6. Na4 {[%emt 0:02:36]} e5 {[%emt 0:02:10]} 7. Bg5 {[%emt 0:00:48]} Bxc5 {[%emt 0:02:47]} 8. Bxf6 {[%emt 0:01:45]} gxf6 {[%emt 0:01:19]} 9. Nxc5 {[%emt 0:00:22]} Qa5+ {[%emt 0:00:14]} 10. Qd2 {[%emt 0:00:16]} Qxc5 {[%emt 0:00:07]} 11. O-O-O {[%emt 0:01:13]} Bf5 {[%emt 0:00:34]} 12. Bd3 {[%emt 0:00:46]} Bxd3 {[%emt 0:00:06]} 13. Qxd3 {[%emt 0:00:06]} Nb4 {[%emt 0:00:07]} 14. Qb3 {[%emt 0:01:57]} O-O-O {[%emt 0:00:39]} 15. Nf3 {[%emt 0:04:18]} Kb8 {[%emt 0:01:16]} 16. Rd2 {[%emt 0:02:03]} Rhe8 {[%emt 0:01:19]} 17. Rhd1 {[%emt 0:04:00]} e4 {[%emt 0:06:16]} 18. Nd4 {[%emt 0:03:29]} Re7 {[%emt 0:01:33]} 19. a3 {[%emt 0:00:46]} Nd3+ {[%emt 0:01:58]} 20. Kb1 {[%emt 0:00:58]} Ne5 {[%emt 0:00:29]} 21. Ne2 {[%emt 0:02:55]} Red7 {[%emt 0:00:28]} 22. Nc3 {[%emt 0:02:26]} Nc4 {[%emt 0:02:31]} 23. Rd4 {[%emt 0:00:18]} Rd6 {[%emt 0:01:02]} 24. Qb4 {[%emt 0:11:05]} Qxb4 {[%emt 0:00:12]} 25. axb4 {[%emt 0:00:09]} Nb6 {[%emt 0:00:13]} 26. Nxe4 {[%emt 0:00:53]} Re6 {[%emt 0:01:51]} 27. c4 {[%emt 0:04:52]} Kc7 {[%emt 0:07:32]} 28. Nc3 {[%emt 0:02:41]} Re5 {[%emt 0:09:06]} 29. c5 {[%emt 0:04:24]} Nc8 {[%emt 0:00:09]} 30. Nxd5+ {[%emt 0:00:36]} Kc6 {[%emt 0:00:16]} 31. Ne7+ {[%emt 0:01:01]} Nxe7 {[%emt 0:00:26]} 32. Rxd8 {[%emt 0:00:10]} 1-0

[Event "GER-ch Youth-U10 2022"]
[Site "Willingen"]
[Date "2022.06.08"]
[Round "7.19"]
[White "Wagener, Nicolas"]
[Black "Svanidze, Alexander"]
[Result "1-0"]
[ECO "C54"]
[WhiteElo "1315"]
[BlackElo "1348"]
[Annotator "NA RC COMBH"]
[PlyCount "112"]
[EventDate "2022.06.05"]
[EventType "swiss"]
[EventRounds "11"]
[EventCountry "GER"]
[SourceTitle "playchess.com"]
[Source "ChessBase"]
[SourceQuality "1"]
[TimeControl "40/4500+30:900+30"]

1. e4 {[%emt 0:00:03]} e5 {[%emt 0:00:03]} 2. Nf3 {[%emt 0:00:05]} Nc6 {[%emt 0:00:05]} 3. Bc4 {[%emt 0:00:32]} Bc5 {[%emt 0:00:05]} 4. c3 {[%emt 0:00:11]} Nf6 {[%emt 0:00:04]} 5. d4 {[%emt 0:00:07]} exd4 {[%emt 0:00:04]} 6. cxd4 {[%emt 0:00:10]} Bb4+ {[%emt 0:00:08]} 7. Nc3 {[%emt 0:00:14]} Nxe4 {[%emt 0:01:11]} 8. O-O {[%emt 0:00:15]} Bxc3 {[%emt 0:00:38]} 9. d5 {[%emt 0:00:09]} Ne5 {[%emt 0:09:55]} 10. Bd3 {[%emt 0:03:59]} O-O {[%emt 0:13:38]} 11. Bxe4 {[%emt 0:03:39]} Nxf3+ {[%emt 0:01:19]} 12. Qxf3 {[%emt 0:00:23]} Bf6 {[%emt 0:01:46]} 13. Qh5 {[%emt 0:01:59]} g6 {[%emt 0:06:41]} 14. Qf3 {[%emt 0:00:46]} d6 {[%emt 0:01:33]} 15. Bh6 {[%emt 0:00:23]} Bg7 {[%emt 0:00:36]} 16. Bxg7 {[%emt 0:00:15]} Kxg7 {[%emt 0:00:21]} 17. Rfe1 {[%emt 0:00:21]} Qf6 {[%emt 0:00:55]} 18. Qxf6+ {[%emt 0:00:18]} Kxf6 {[%emt 0:00:04]} 19. Rac1 {[%emt 0:00:23]} Rd8 {[%emt 0:05:12]} 20. Rxc7 {[%emt 0:01:05]} Rd7 {[%emt 0:00:06]} 21. Rec1 {[%emt 0:00:55]} Rxc7 {[%emt 0:02:08]} 22. Rxc7 {[%emt 0:00:24]} b6 {[%emt 0:01:49]} 23. g3 {[%emt 0:04:10]} Ba6 {[%emt 0:01:51]} 24. Rd7 {[%emt 0:02:11]} Ke5 {[%emt 0:01:20]} 25. Bg2 {[%emt 0:01:18]} Rc8 {[%emt 0:01:12]} 26. h4 {[%emt 0:00:21]} Rc1+ {[%emt 0:00:47]} 27. Kh2 {[%emt 0:00:07]} Rc2 {[%emt 0:00:42]} 28. Rxa7 {[%emt 0:00:07]} Bc4 {[%emt 0:00:04]} 29. Rxf7 {[%emt 0:00:48]} Rxb2 {[%emt 0:00:26]} 30. Rxh7 {[%emt 0:00:25]} Rxf2 {[%emt 0:00:15]} 31. Kg1 {[%emt 0:02:12]} Rxa2 {[%emt 0:01:48]} 32. Rg7 {[%emt 0:02:08]} b5 {[%emt 0:02:25]} 33. Rxg6 {[%emt 0:01:19]} b4 {[%emt 0:00:38]} 34. Rg4 {[%emt 0:00:54]} Rc2 {[%emt 0:04:18]} 35. Re4+ {[%emt 0:00:41]} Kf6 {[%emt 0:01:39]} 36. Re6+ {[%emt 0:00:21]} Kf7 {[%emt 0:00:40]} 37. Rxd6 {[%emt 0:00:23]} b3 {[%emt 0:01:06]} 38. Rb6 {[%emt 0:00:22]} b2 {[%emt 0:00:23]} 39. Be4 {[%emt 0:01:26]} Rd2 {[%emt 0:01:36]} 40. Rb4 {[%emt 0:05:50]} Ba2 {[%emt 0:01:51]} 41. Kf1 {[%emt 0:17:30]} Rd1+ {[%emt 0:17:41]} 42. Ke2 {[%emt 0:03:47]} b1=Q {[%emt 0:00:13]} 43. Bxb1 {[%emt 0:00:20]} Rxb1 {[%emt 0:00:06]} 44. Rxb1 {[%emt 0:00:11]} Bxb1 {[%emt 0:00:26]} 45. Ke3 {[%emt 0:00:25]} Kf6 {[%emt 0:00:25]} 46. Kd4 {[%emt 0:00:16]} Bf5 {[%emt 0:00:57]} 47. Kc5 {[%emt 0:00:15]} Ke7 {[%emt 0:00:39]} 48. d6+ {[%emt 0:00:42]} Kd7 {[%emt 0:00:41]} 49. h5 {[%emt 0:01:48]} Be4 {[%emt 0:01:47]} 50. Kd4 {[%emt 0:01:15]} Bf5 {[%emt 0:00:22]} 51. Ke5 {[%emt 0:00:12]} Bh7 {[%emt 0:00:07]} 52. g4 {[%emt 0:00:17]} Bc2 {[%emt 0:01:51]} 53. g5 {[%emt 0:00:23]} Bd1 {[%emt 0:02:32]} 54. h6 {[%emt 0:00:45]} Bc2 {[%emt 0:00:06]} 55. Kf6 {[%emt 0:00:59]} Kxd6 {[%emt 0:00:20]} 56. g6 {[%emt 0:00:13]} Bxg6 {[%emt 0:00:29]} 1-0

[Event "GER-ch Youth-U10 2022"]
[Site "Willingen"]
[Date "2022.06.08"]
[Round "7.20"]
[White "Wolf, Noah"]
[Black "Lanert, Theodor"]
[Result "1-0"]
[ECO "B22"]
[WhiteElo "1073"]
[BlackElo "1306"]
[Annotator "NA RC COMBH"]
[PlyCount "59"]
[EventDate "2022.06.05"]
[EventType "swiss"]
[EventRounds "11"]
[EventCountry "GER"]
[SourceTitle "playchess.com"]
[Source "ChessBase"]
[SourceQuality "1"]
[TimeControl "40/4500+30:900+30"]

1. e4 {[%emt 0:00:02]} c5 {[%emt 0:00:03]} 2. c3 {[%emt 0:00:43]} d5 {[%emt 0:00:14]} 3. exd5 {[%emt 0:01:09]} Qxd5 {[%emt 0:00:07]} 4. d4 {[%emt 0:00:56]} Nf6 {[%emt 0:00:55]} 5. Nf3 {[%emt 0:01:31]} Nc6 {[%emt 0:00:47]} 6. Bd3 {[%emt 0:02:18]} Bg4 {[%emt 0:00:54]} 7. O-O {[%emt 0:00:34]} e6 {[%emt 0:00:48]} 8. Re1 {[%emt 0:00:51]} cxd4 {[%emt 0:01:49]} 9. Bf4 {[%emt 0:06:15]} Be7 {[%emt 0:00:47]} 10. Be2 {[%emt 0:09:28]} dxc3 {[%emt 0:04:32]} 11. Nxc3 {[%emt 0:01:14]} Qxd1 {[%emt 0:00:20]} 12. Raxd1 {[%emt 0:01:36]} O-O {[%emt 0:00:23]} 13. Ne5 {[%emt 0:01:43]} Bxe2 {[%emt 0:01:05]} 14. Nxc6 {[%emt 0:00:40]} Bxd1 {[%emt 0:03:56]} 15. Nxe7+ {[%emt 0:00:12]} Kh8 {[%emt 0:00:05]} 16. Rxd1 {[%emt 0:00:57]} Rfe8 {[%emt 0:00:15]} 17. Bd6 {[%emt 0:00:37]} Rad8 {[%emt 0:01:43]} 18. Ba3 {[%emt 0:08:22]} Nd7 {[%emt 0:01:20]} 19. Nb5 {[%emt 0:02:53]} Nb6 {[%emt 0:01:09]} 20. Nd6 {[%emt 0:00:45]} Rxd6 {[%emt 0:04:20]} 21. Rxd6 {[%emt 0:01:51]} Nc4 {[%emt 0:00:25]} 22. Rd7 {[%emt 0:00:22]} Nxa3 {[%emt 0:00:43]} 23. bxa3 {[%emt 0:00:15]} Rb8 {[%emt 0:00:09]} 24. f4 {[%emt 0:00:40]} g6 {[%emt 0:00:11]} 25. Kf2 {[%emt 0:00:50]} Kg7 {[%emt 0:00:09]} 26. g4 {[%emt 0:01:19]} Kf6 {[%emt 0:00:17]} 27. h4 {[%emt 0:00:54]} e5 {[%emt 0:01:31]} 28. fxe5+ {[%emt 0:04:57]} Kxe5 {[%emt 0:02:39]} 29. Rd2 {[%emt 0:01:11]} Re8 {[%emt 0:00:58]} 30. Nxg6+ {[%emt 0:01:38]} 1-0